fUSD/lending_fUSD_20251120
["ID","MTS","AMOUNT","RATE_DAILY","PERIOD"]
[394471043,1763614939139,182.467162,0.00042054,120]
[394471044,1763614939422,182.467162,0.00042054,120]
[394471045,1763614939714,182.467162,0.00042054,120]
[394471046,1763614940002,182.467162,0.00042054,120]
[394471047,1763614940297,182.467162,0.00042054,120]
[394471048,1763614940596,182.467162,0.00042054,120]
[394471049,1763614940900,182.467154,0.00042054,120]
[394471051,1763614941983,500.0,0.00042054,120]
[394471052,1763614942250,519.12393323,0.00042054,120]
[394471055,1763614987108,521.45139155,0.00042058,120]
[394471056,1763614987630,238.36410598,0.00015953,2]
[394471057,1763614987655,289.47035304,0.00015953,2]
[394471058,1763614987694,261.25589403,0.00015953,2]
[394471059,1763614988817,263.91722951,0.00015953,2]
[394471060,1763615009487,410.66908147,0.00042058,120]
[394471061,1763615012672,151.0,0.00042058,120]
[394471062,1763615017667,151.0,0.00042058,120]
[394471063,1763615023368,-607.6267503,0.00016064,2]
[394471064,1763615024372,8784.7564994,0.00015829,2]
[394471065,1763615024396,10000.01,0.00015829,2]
[394471066,1763615024419,10000.01,0.00015829,2]
[394471067,1763615024440,6717.9835006,0.00015829,2]
[394471068,1763615038307,250.0,0.00015791,2]
[394471069,1763615044127,471.10407021,0.00042058,120]
[394471070,1763615044669,151.0,0.00042058,120]
[394471071,1763615046039,492.77109467,0.00042058,120]
[394471072,1763615048085,481.43941965,0.00042058,120]
[394471073,1763615049765,151.0,0.00042058,120]
[394471074,1763615049827,151.0,0.00042058,120]
[394471075,1763615050106,151.0,0.00042058,120]
[394471076,1763615050175,466.92781263,0.00042058,120]
[394471077,1763615050441,151.0,0.00042058,120]
[394471078,1763615050735,151.0,0.00042058,120]
[394471079,1763615051361,151.0,0.00042058,120]
[394471080,1763615051807,151.0,0.00042058,120]
[394471081,1763615051970,151.0,0.00042058,120]
[394471082,1763615052082,483.85246638,0.00042058,120]
[394471083,1763615052277,151.0,0.00042058,120]
[394471084,1763615052607,227.020158,0.00042058,120]
[394471085,1763615058053,400.0,0.00042058,120]
[394471086,1763615059308,151.0,0.00042058,120]
[394471087,1763615059615,151.0,0.00042058,120]
[394471088,1763615059925,151.0,0.00042058,120]
[394471089,1763615060177,469.89821513,0.00042058,120]
[394471090,1763615060510,153.363381,0.00042058,60]
[394471091,1763615062220,151.0,0.00042058,120]
[394471092,1763615062490,400.0,0.00042058,120]
[394471093,1763615064775,501.32637674,0.00042058,120]
[394471094,1763615065685,153.12278,0.00042058,120]
[394471095,1763615066248,151.0,0.00042058,120]
[394471096,1763615067247,151.0,0.00042058,120]
[394471097,1763615067638,151.0,0.00042058,120]
[394471098,1763615067709,400.0,0.00042058,120]
[394471099,1763615067947,151.0,0.00042058,120]
[394471100,1763615068265,287.98212,0.00042058,120]
[394471101,1763615069964,151.0,0.00042058,120]
[394471102,1763615073109,151.0,0.00042058,120]
[394471103,1763615073411,151.0,0.00042058,120]
[394471104,1763615073652,541.58798586,0.00042058,120]
[394471105,1763615073747,151.0,0.00042058,120]
[394471106,1763615074028,178.99188948,0.00016007,2]
[394471107,1763615080093,299.99,0.00016922,4]
[394471108,1763615080326,151.0,0.00042058,120]
[394471109,1763615081606,151.0,0.00042058,120]
[394471110,1763615081787,1500.0,0.00015787,2]
[394471111,1763615083157,460.70334092,0.00042058,120]
[394471112,1763615085466,400.0,0.00042058,120]
[394471113,1763615085884,151.0,0.00042058,120]
[394471114,1763615086189,151.0,0.00042058,120]
[394471115,1763615086491,151.0,0.00042058,120]
[394471116,1763615087109,151.0,0.00042058,120]
[394471117,1763615087407,151.0,0.00042058,120]
[394471118,1763615087704,151.0,0.00042058,120]
[394471119,1763615087997,271.271938,0.00042058,120]
[394471125,1763615128231,506.35562525,0.00016064,2]
[394471126,1763615142683,151.0,0.00042058,120]
[394471127,1763615153312,151.0,0.00042058,120]
[394471128,1763615153613,151.0,0.00042058,120]
[394471129,1763615154018,151.0,0.00042058,120]
[394471130,1763615157630,263.91722951,0.00016064,2]
[394471131,1763615161289,200.0,0.00042058,30]
[394471132,1763615165623,151.0,0.00042058,120]
[394471133,1763615165935,151.0,0.00042058,120]
[394471134,1763615171469,151.0,0.00042058,120]
[394471135,1763615171743,151.0,0.00042058,120]
[394471136,1763615172044,154.504292,0.00042058,120]
[394471137,1763615175355,151.0,0.00042058,120]
[394471138,1763615175435,151.0,0.00042058,120]
[394471139,1763615175745,153.162366,0.00042058,120]
[394471140,1763615177419,151.0,0.00042058,120]
[394471141,1763615177699,155.197064,0.00042058,120]
[394471142,1763615180815,500.0,0.00042058,120]
[394471143,1763615181030,151.0,0.00042058,120]
[394471144,1763615181356,151.0,0.00042058,120]
[394471145,1763615181653,151.0,0.00042058,120]
[394471146,1763615182003,155.608679,0.00042058,120]
[394471147,1763615187286,151.0,0.00042058,120]
[394471148,1763615187688,151.0,0.00042058,120]
[394471149,1763615187981,151.0,0.00042058,120]
[394471150,1763615190268,151.0,0.00042058,120]
[394471151,1763615191078,573.71571001,0.00042058,35]
[394471152,1763615192469,151.0,0.00042058,120]
[394471153,1763615192505,500.0,0.00016007,2]
[394471154,1763615192955,151.0,0.00042058,120]
[394471155,1763615193322,151.0,0.00042058,120]
[394471156,1763615193700,266.619563,0.00042058,120]
[394471157,1763615195336,151.0,0.00042058,60]
[394471158,1763615195525,151.0,0.00042058,120]
[394471159,1763615195672,170.673861,0.00042058,60]
[394471160,1763615195999,151.0,0.00042058,120]
[394471161,1763615196132,151.0,0.00042058,120]
[394471162,1763615196202,151.0,0.00042058,120]
[394471163,1763615196424,151.0,0.00042058,120]
[394471164,1763615196750,151.0,0.00042058,120]
[394471165,1763615197064,151.0,0.00042058,120]
[394471166,1763615197363,151.0,0.00042058,120]
[394471167,1763615197648,151.0,0.00042058,120]
[394471168,1763615197951,247.004344,0.00042058,120]
[394471169,1763615199169,151.0,0.00042058,120]
[394471170,1763615203161,150.5,0.0002619,120]
[394471171,1763615203611,150.5,0.0002618,120]
[394471172,1763615204056,257.0,0.0002617,120]
[394471173,1763615221696,600.0,0.000168,6]
[394471174,1763615223800,1200.0,0.000169,6]
[394471175,1763615224444,420.4890337,0.00042058,120]
[394471176,1763615225881,1900.0,0.000173,6]
[394471177,1763615226759,82.76175516,0.00015619,2]
[394471178,1763615226782,728.95824484,0.00015619,2]
[394471179,1763615227961,2500.0,0.000174,6]
[394471180,1763615243353,421.96302105,0.00016064,2]
[394471181,1763615247144,500.0,0.00015632,2]
[394471182,1763615249384,151.0,0.00042058,120]
[394471183,1763615249763,151.0,0.00042058,120]
[394471184,1763615250086,165.262721,0.00042058,120]
[394471185,1763615255292,151.0,0.00042058,30]
[394471186,1763615255625,156.128904,0.00042058,30]
[394471187,1763615255712,155.264031,0.00042058,120]
[394471189,1763615278553,409.10335995,0.00042058,120]
[394471191,1763615290586,151.0,0.00042058,120]
[394471192,1763615294475,190.2695061,0.00042058,120]
[394471193,1763615298591,500.0,0.00042058,120]
[394471195,1763615298965,500.0,0.00042058,120]
[394471196,1763615300798,184.44627058,0.00042058,120]
[394471197,1763615302827,500.0,0.00042058,120]
[394471198,1763615303076,372.95949846,0.00042058,120]
[394471199,1763615306588,266.87016701,0.00042058,120]
[394471200,1763615307828,280.83193906,0.00042058,120]
[394471201,1763615311362,195.74010583,0.00042058,120]
[394471202,1763615313309,196.2947697,0.00042058,120]
[394471203,1763615318329,407.0423491,0.00042058,120]
[394471204,1763615320113,500.0,0.00042058,120]
[394471205,1763615320394,500.0,0.00042058,120]
[394471206,1763615322117,500.0,0.00042058,120]
[394471207,1763615322347,500.0,0.00042058,120]
[394471208,1763615322487,194.89245176,0.00042058,120]
[394471209,1763615334998,500.0,0.00042058,120]
[394471210,1763615335278,500.0,0.00042058,120]
[394471211,1763615336119,400.0,0.00042058,120]
[394471212,1763615341669,436.8491893,0.00042058,120]
[394471213,1763615343664,566.71947675,0.00042058,120]
[394471214,1763615344334,538.70398428,0.00042058,120]
[394471215,1763615352346,500.0,0.00042058,120]
[394471216,1763615352582,316.44526942,0.00042058,120]
[394471217,1763615353912,500.0,0.00016007,2]
[394471218,1763615358572,351.63585085,0.00016032,2]
[394471219,1763615360602,151.0,0.00042058,120]
[394471220,1763615360837,151.901834,0.00042058,120]
[394471221,1763615362266,449.64446298,0.00042058,120]
[394471222,1763615365051,151.693682,0.00042058,120]
[394471223,1763615365106,151.0,0.00042058,120]
[394471224,1763615365390,246.696339,0.00042058,120]
[394471225,1763615366273,160.301363,0.00042058,120]
[394471226,1763615366764,151.0,0.00042058,120]
[394471227,1763615368876,500.0,0.00042058,120]
[394471228,1763615369158,500.0,0.00042058,120]
[394471229,1763615369414,500.0,0.00042058,120]
[394471230,1763615369649,500.0,0.00042058,120]
[394471231,1763615370067,437.01923167,0.00042058,120]
[394471232,1763615370320,569.9906646,0.00042058,120]
[394471233,1763615371137,151.988106,0.00042058,120]
[394471234,1763615372218,500.0,0.00042058,120]
[394471235,1763615372480,500.0,0.00042058,120]
[394471236,1763615372724,500.0,0.00042058,120]
[394471237,1763615372961,543.34717537,0.00042058,120]
[394471238,1763615373586,616.70908387,0.00042058,120]
[394471239,1763615374779,500.0,0.00042058,120]
[394471240,1763615375118,500.0,0.00042058,120]
[394471241,1763615375185,344.54,0.00042058,120]
[394471242,1763615375375,500.0,0.00042058,120]
[394471243,1763615375430,237.44482564,0.00042058,120]
[394471244,1763615375603,507.79352132,0.00042058,120]
[394471245,1763615377626,151.0,0.00042058,120]
[394471246,1763615377948,151.0,0.00042058,120]
[394471247,1763615378697,500.0,0.00042058,120]
[394471248,1763615378969,500.0,0.00042058,120]
[394471249,1763615379227,500.0,0.00042058,120]
[394471250,1763615379483,500.0,0.00042058,120]
[394471251,1763615379703,300.34,0.00042058,120]
[394471252,1763615379900,151.0,0.00042058,120]
[394471253,1763615380186,151.0,0.00042058,120]
[394471254,1763615382077,514.54615909,0.00042058,120]
[394471255,1763615382142,500.0,0.00042058,120]
[394471256,1763615382398,500.0,0.00042058,120]
[394471257,1763615382633,500.0,0.00042058,120]
[394471258,1763615382878,525.41170843,0.00042058,120]
[394471259,1763615383974,500.0,0.00042058,120]
[394471260,1763615384228,191.59480645,0.00042058,120]
[394471261,1763615385306,598.0647633,0.00042058,120]
[394471262,1763615386229,500.0,0.00042058,120]
[394471263,1763615386482,500.0,0.00042058,120]
[394471264,1763615386736,510.90463511,0.00042058,120]
[394471265,1763615387320,151.0,0.00042058,120]
[394471266,1763615387605,153.31205,0.00042058,120]
[394471267,1763615388601,500.0,0.00042058,120]
[394471268,1763615388841,500.0,0.00042058,120]
[394471269,1763615389073,500.0,0.00042058,120]
[394471270,1763615389329,500.0,0.00042058,120]
[394471271,1763615389585,500.0,0.00042058,120]
[394471272,1763615389832,500.0,0.00042058,120]
[394471273,1763615390103,500.0,0.00042058,120]
[394471274,1763615390621,500.0,0.00042058,120]
[394471275,1763615390876,508.2497758,0.00042058,120]
[394471276,1763615391205,500.0,0.00042058,120]
[394471277,1763615391282,183.08993695,0.00042058,120]
[394471278,1763615391490,200.0,0.00015585,2]
[394471279,1763615406570,623.04323149,0.00042059,120]
[394471280,1763615407505,500.0,0.00042059,120]
[394471281,1763615407739,500.0,0.00042059,120]
[394471282,1763615407988,500.0,0.00042059,120]
[394471283,1763615408268,500.0,0.00042059,120]
[394471284,1763615408446,178.64529989,0.00042059,120]
[394471285,1763615408524,500.0,0.00042059,120]
[394471286,1763615408764,500.0,0.00042059,120]
[394471287,1763615409067,500.0,0.00042059,120]
[394471288,1763615409281,500.0,0.00042059,120]
[394471289,1763615416307,500.0,0.00042059,120]
[394471290,1763615416561,418.18466383,0.00042059,120]
[394471291,1763615416742,500.0,0.00042059,120]
[394471292,1763615416833,500.0,0.00042059,120]
[394471293,1763615416978,500.0,0.00042059,120]
[394471294,1763615417311,500.0,0.00042059,120]
[394471295,1763615417425,306.25503724,0.00042059,120]
[394471296,1763615417485,500.0,0.00042059,120]
[394471297,1763615417648,500.0,0.00042059,120]
[394471298,1763615417876,500.0,0.00042059,120]
[394471299,1763615418126,313.01063106,0.00042059,120]
[394471300,1763615418780,500.0,0.00042059,120]
[394471301,1763615419034,342.40787437,0.00042059,120]
[394471302,1763615419100,152.957262,0.00042059,120]
[394471303,1763615421730,153.643173,0.00042059,120]
[394471304,1763615423179,500.0,0.00042059,120]
[394471305,1763615423434,263.53193212,0.00042059,120]
[394471306,1763615424008,381.07715057,0.00042059,120]
[394471307,1763615424783,500.0,0.00042059,120]
[394471308,1763615425021,500.0,0.00042059,120]
[394471309,1763615425250,500.0,0.00042059,120]
[394471310,1763615425478,500.0,0.00042059,120]
[394471311,1763615425643,500.0,0.00042059,120]
[394471312,1763615425723,500.0,0.00042059,120]
[394471313,1763615425859,500.0,0.00042059,120]
[394471314,1763615425961,500.0,0.00042059,120]
[394471315,1763615426087,500.0,0.00042059,120]
[394471316,1763615426200,190.50061321,0.00042059,120]
[394471317,1763615426324,482.29829143,0.00042059,120]
[394471318,1763615427542,500.0,0.00042059,120]
[394471319,1763615427778,402.58094884,0.00042059,120]
[394471320,1763615428578,151.0,0.00042059,120]
[394471321,1763615428968,151.0,0.00042059,120]
[394471322,1763615429812,500.0,0.00042059,120]
[394471323,1763615430092,500.0,0.00042059,120]
[394471324,1763615430340,500.0,0.00042059,120]
[394471325,1763615430410,500.0,0.00042059,120]
[394471326,1763615430561,500.0,0.00042059,120]
[394471327,1763615430829,500.0,0.00042059,120]
[394471328,1763615431052,157.056001,0.00042059,120]
[394471329,1763615431115,526.74735645,0.00042059,120]
[394471330,1763615431522,500.0,0.00042059,120]
[394471331,1763615431745,500.0,0.00042059,120]
[394471337,1763615431920,-1184.93,0.00016107,2]
[394471338,1763615431930,-500.0,0.00016107,2]
[394471339,1763615431939,-500.0,0.00016107,2]
[394471340,1763615431948,-193.6806915,0.00016119,2]
[394471342,1763615431958,-198.07354798,0.00016119,2]
[394471343,1763615431967,-185.5498511,0.00016132,2]
[394471344,1763615431976,-341.0,0.00016199,2]
[394471345,1763615431986,-300.0,0.00016199,2]
[394471346,1763615431996,-1200.0,0.00016199,2]
[394471347,1763615432005,-150.0,0.000162,2]
[394471348,1763615432015,-150.0,0.000162,2]
[394471349,1763615432024,-150.0,0.000162,2]
[394471350,1763615432034,-150.0,0.000162,2]
[394471351,1763615432044,-150.0,0.000162,2]
[394471352,1763615432053,-150.0,0.000162,2]
[394471353,1763615432063,-150.0,0.000162,2]
[394471354,1763615432073,-172.72049234,0.000162,2]
[394471355,1763615432083,-150.0,0.000162,2]
[394471356,1763615432092,-154.83745128,0.000162,2]
[394471357,1763615432102,-150.0,0.000162,2]
[394471358,1763615432112,-150.65158724,0.000162,2]
[394471359,1763615432121,-150.0,0.000162,2]
[394471360,1763615432131,-150.0,0.000162,2]
[394471361,1763615432141,-150.0,0.000162,2]
[394471362,1763615432151,-351.63585083,0.00016232,2]
[394471363,1763615432161,-150.0,0.00016286,2]
[394471364,1763615432170,-150.0,0.0001632,2]
[394471365,1763615432180,-351.63585083,0.00016333,2]
[394471366,1763615432189,-150.0,0.00016371,2]
[394471367,1763615432200,-150.0,0.0001638,2]
[394471369,1763615432210,-150.0,0.000164,2]
[394471370,1763615432219,-150.0,0.000164,2]
[394471371,1763615432229,-351.63585083,0.00016433,2]
[394471372,1763615432239,-4274.76,0.00016438,2]
[394471373,1763615432248,-150.0,0.0001644,2]
[394471374,1763615432258,-150.0,0.00016457,2]
[394471375,1763615432269,-150.0,0.00016457,2]
[394471376,1763615432281,-150.0,0.000165,2]
[394471377,1763615432290,-150.0,0.000165,2]
[394471378,1763615432300,-949.97,0.00016523,2]
[394471379,1763615432309,-949.97,0.00016523,2]
[394471380,1763615432321,-949.97,0.00016523,2]
[394471381,1763615432332,-949.97,0.00016523,2]
[394471382,1763615432343,-949.97,0.00016523,2]
[394471383,1763615432352,-163.83,0.00016523,2]
[394471384,1763615432361,-90062.7458991,0.00016533,2]
[394471385,1763615432557,-88990.05151701,0.00016533,2]
[394471386,1763615432568,-35614.45232434,0.00016533,2]
[394471387,1763615432579,-19692.85439625,0.00016533,2]
[394471388,1763615432651,500.0,0.00042059,120]
[394471389,1763615432667,-370.58127462,0.00016533,2]
[394471390,1763615432742,500.0,0.00042059,120]
[394471391,1763615432759,-18352.79999997,0.00016533,2]
[394471392,1763615432769,-1953.96884938,0.00016533,2]
[394471393,1763615432780,-9018.0,0.00016533,2]
[394471394,1763615432844,417.37968837,0.00042059,120]
[394471395,1763615432994,404.93738315,0.00042059,120]
[394471396,1763615433967,509.43580917,0.00042059,120]
[394471397,1763615434196,409.58844126,0.00042059,120]
[394471398,1763615434347,597.41753013,0.00042059,120]
[394471399,1763615435063,500.0,0.00042059,120]
[394471400,1763615435578,500.0,0.00042059,120]
[394471401,1763615435660,500.0,0.00042059,120]
[394471402,1763615435810,500.0,0.00042059,120]
[394471403,1763615435906,500.0,0.00042059,120]
[394471404,1763615435980,500.0,0.00042059,120]
[394471405,1763615436053,500.0,0.00042059,120]
[394471406,1763615436122,500.0,0.00042059,120]
[394471407,1763615436323,500.0,0.00042059,120]
[394471408,1763615436560,500.0,0.00042059,120]
[394471409,1763615436715,500.0,0.00042059,120]
[394471410,1763615436775,151.0,0.00042059,30]
[394471411,1763615436844,601.85944759,0.00042059,120]
[394471412,1763615436971,500.0,0.00042059,120]
[394471413,1763615437246,500.0,0.00042059,120]
[394471417,1763615438003,-300.6,0.00016533,2]
[394471418,1763615438015,-2737.53953495,0.00016533,2]
[394471419,1763615438027,-800.0,0.00016533,2]
[394471420,1763615438061,-44750.0,0.00016533,2]
[394471421,1763615438073,-447356.40620438,0.00016533,2]
[394471422,1763615438082,-351.63585083,0.00016533,2]
[394471423,1763615438092,-150.0,0.00016543,2]
[394471424,1763615438101,-150.0,0.0001656,2]
[394471425,1763615438111,-150.0,0.0001656,2]
[394471426,1763615438120,-500.0,0.00016573,2]
[394471427,1763615438130,-500.0,0.00016573,2]
[394471428,1763615438140,-880.24909892,0.0001658,2]
[394471429,1763615438149,-150.0,0.000166,2]
[394471430,1763615438159,-150.0,0.000166,2]
[394471431,1763615438168,-150.0,0.00016629,2]
[394471432,1763615438178,-1115.8303,0.00016631,2]
[394471433,1763615438188,-550.0,0.00016631,2]
[394471434,1763615438198,-4717.9672,0.00016632,2]
[394471435,1763615438208,-2500.0,0.00016632,2]
[394471436,1763615438218,-201.45892552,0.00016632,2]
[394471437,1763615438228,-4576.067,0.00016632,2]
[394471439,1763615438238,-320.691,0.00016632,2]
[394471441,1763615438247,-930.23869139,0.00016633,2]
[394471443,1763615438257,-12067.8074752,0.00016633,2]
[394471445,1763615438266,-15597.49607664,0.00016633,2]
[394471447,1763615438280,-150.0,0.0001668,2]
[394471449,1763615438290,-202.8,0.00016712,2]
[394471451,1763615438299,-150.0,0.00016714,2]
[394471453,1763615438308,-150.0,0.00016714,2]
[394471455,1763615438319,-151.0,0.00016728,2]
[394471457,1763615438328,-407.62088803,0.0001673,2]
[394471466,1763615438487,-500.0,0.00016731,2]
[394471467,1763615438498,-500.0,0.00016731,2]
[394471468,1763615438507,-500.0,0.00016731,2]
[394471469,1763615438517,-500.0,0.00016731,2]
[394471470,1763615438526,-500.0,0.00016731,2]
[394471471,1763615438535,-500.0,0.00016731,2]
[394471472,1763615438544,-376.98993045,0.00016731,2]
[394471474,1763615438554,-182.64309664,0.00016731,2]
[394471475,1763615438563,-500.0,0.00016731,2]
[394471476,1763615438572,-500.0,0.00016731,2]
[394471477,1763615438582,-500.0,0.00016731,2]
[394471478,1763615438592,-327.92456705,0.00016731,2]
[394471479,1763615438602,-153.25016852,0.00016731,2]
[394471480,1763615438611,-500.0,0.00016731,2]
[394471481,1763615438620,-500.0,0.00016731,2]
[394471482,1763615438630,-500.0,0.00016731,2]
[394471483,1763615438639,-500.0,0.00016731,2]
[394471484,1763615438649,-500.0,0.00016731,2]
[394471485,1763615438658,-500.0,0.00016731,2]
[394471486,1763615438667,-600.0,0.00016731,2]
[394471487,1763615438676,-500.0,0.00016731,2]
[394471488,1763615438686,-500.0,0.00016731,2]
[394471489,1763615438695,-500.0,0.00016731,2]
[394471490,1763615438704,-500.0,0.00016731,2]
[394471491,1763615438714,-500.0,0.00016731,2]
[394471492,1763615438723,-500.0,0.00016731,2]
[394471493,1763615438732,-500.0,0.00016731,2]
[394471494,1763615438741,-500.0,0.00016731,2]
[394471495,1763615438750,-500.0,0.00016731,2]
[394471496,1763615438759,-500.0,0.00016731,2]
[394471497,1763615438769,-500.0,0.00016731,2]
[394471498,1763615438778,-500.0,0.00016731,2]
[394471499,1763615438787,-500.0,0.00016731,2]
[394471500,1763615438797,-500.0,0.00016731,2]
[394471501,1763615438806,-500.0,0.00016731,2]
[394471502,1763615438815,-500.0,0.00016731,2]
[394471503,1763615438825,-500.0,0.00016731,2]
[394471504,1763615438834,-500.0,0.00016731,2]
[394471505,1763615438843,-500.0,0.00016731,2]
[394471506,1763615438852,-250.0,0.00016731,2]
[394471507,1763615438861,-500.0,0.00016731,2]
[394471508,1763615438870,-500.0,0.00016731,2]
[394471509,1763615438880,-500.0,0.00016731,2]
[394471510,1763615438889,-500.0,0.00016731,2]
[394471511,1763615438899,-249.84748898,0.00016731,2]
[394471512,1763615438908,-500.0,0.00016731,2]
[394471513,1763615438917,-500.0,0.00016731,2]
[394471514,1763615438927,-500.0,0.00016731,2]
[394471515,1763615438936,-500.0,0.00016731,2]
[394471516,1763615438946,-500.0,0.00016731,2]
[394471517,1763615438955,-500.0,0.00016731,2]
[394471518,1763615438964,-500.0,0.00016731,2]
[394471519,1763615438974,-500.0,0.00016731,2]
[394471520,1763615438983,-500.0,0.00016731,2]
[394471521,1763615438993,-500.0,0.00016731,2]
[394471522,1763615439002,-500.0,0.00016731,2]
[394471523,1763615439011,-500.0,0.00016731,2]
[394471524,1763615439020,-500.0,0.00016731,2]
[394471525,1763615439030,-500.0,0.00016731,2]
[394471526,1763615439039,-500.0,0.00016731,2]
[394471527,1763615439048,-500.0,0.00016731,2]
[394471528,1763615439057,-500.0,0.00016731,2]
[394471529,1763615439066,-500.0,0.00016731,2]
[394471530,1763615439076,-500.0,0.00016731,2]
[394471531,1763615439086,-500.0,0.00016731,2]
[394471532,1763615439096,-500.0,0.00016731,2]
[394471533,1763615439106,-500.0,0.00016731,2]
[394471534,1763615439116,-500.0,0.00016731,2]
[394471535,1763615439126,-500.0,0.00016731,2]
[394471536,1763615439136,-500.0,0.00016731,2]
[394471537,1763615439147,-500.0,0.00016731,2]
[394471538,1763615439158,-500.0,0.00016731,2]
[394471539,1763615439169,-500.0,0.00016731,2]
[394471540,1763615439180,-500.0,0.00016731,2]
[394471541,1763615439190,-500.0,0.00016731,2]
[394471542,1763615439201,-500.0,0.00016731,2]
[394471543,1763615439212,-500.0,0.00016731,2]
[394471544,1763615439223,-500.0,0.00016731,2]
[394471545,1763615439233,-500.0,0.00016731,2]
[394471546,1763615439243,-550.0,0.00016731,2]
[394471547,1763615439254,-500.0,0.00016731,2]
[394471548,1763615439264,-500.0,0.00016731,2]
[394471549,1763615439275,-500.0,0.00016731,2]
[394471550,1763615439286,-500.0,0.00016731,2]
[394471551,1763615439296,-500.0,0.00016731,2]
[394471552,1763615439305,-500.0,0.00016731,2]
[394471553,1763615439315,-500.0,0.00016731,2]
[394471554,1763615439325,-500.0,0.00016731,2]
[394471555,1763615439339,-500.0,0.00016731,2]
[394471556,1763615439348,-267.04922914,0.00016731,2]
[394471557,1763615439359,-500.0,0.00016731,2]
[394471558,1763615439369,-500.0,0.00016731,2]
[394471559,1763615439379,-500.0,0.00016731,2]
[394471560,1763615439388,-500.0,0.00016731,2]
[394471561,1763615439397,-500.0,0.00016731,2]
[394471562,1763615439406,-578.56368039,0.00016731,2]
[394471563,1763615439416,-500.0,0.00016731,2]
[394471564,1763615439426,-414.67783564,0.00016731,2]
[394471565,1763615439435,-500.0,0.00016731,2]
[394471566,1763615439446,-500.0,0.00016731,2]
[394471567,1763615439455,-500.0,0.00016731,2]
[394471568,1763615439464,-500.0,0.00016731,2]
[394471569,1763615439474,-500.0,0.00016731,2]
[394471570,1763615439483,-578.99448412,0.00016731,2]
[394471571,1763615439492,-506.26422673,0.00016731,2]
[394471572,1763615439501,-185.75934257,0.00016731,2]
[394471573,1763615439510,-457.22802774,0.00016731,2]
[394471574,1763615439519,-500.0,0.00016731,2]
[394471575,1763615439528,-500.0,0.00016731,2]
[394471576,1763615439537,-391.30965379,0.00016731,2]
[394471577,1763615439546,-265.71665129,0.00016731,2]
[394471578,1763615439556,-500.0,0.00016731,2]
[394471579,1763615439566,-500.0,0.00016731,2]
[394471580,1763615439575,-273.69043222,0.00016731,2]
[394471581,1763615439585,-194.5394073,0.00016731,2]
[394471582,1763615439594,-500.0,0.00016731,2]